fUSD/lending_fUSD_20260608
["ID","MTS","AMOUNT","RATE_DAILY","PERIOD"]
[424459054,1780927838000,-159.0,0.000135,2]
[424459056,1780927838000,-185.51206649,0.000135,2]
[424459057,1780927838000,-166.44771542,0.00013501,2]
[424459059,1780927838000,-182.13614605,0.0001353,2]
[424459058,1780927838000,-162.7013178,0.0001353,2]
[424459062,1780927838000,-1600.0,0.00013572,2]
[424459064,1780927838000,-897.64890297,0.00013588,2]
[424459060,1780927838000,-27129.77,0.00013562,2]
[424459061,1780927838000,-500.0,0.00013572,2]
[424459049,1780927838000,-64577.77845255,0.00012936,2]
[424459108,1780927838000,-555.22857145,0.00013595,2]
[424459069,1780927838000,-470.5678691,0.00013595,2]
[424459099,1780927838000,-555.22857145,0.00013595,2]
[424459160,1780927838000,-500.0,0.00013597,2]
[424459162,1780927838000,-500.0,0.00013597,2]
[424459163,1780927838000,-500.0,0.00013597,2]
[424459164,1780927838000,-500.0,0.00013597,2]
[424459165,1780927838000,-500.0,0.00013597,2]
[424459169,1780927838000,-250.0,0.00013598,2]
[424459166,1780927838000,-500.0,0.00013597,2]
[424459167,1780927838000,-500.0,0.00013597,2]
[424459168,1780927838000,-489.84630773,0.00013598,2]
[424459171,1780927838000,-900.0,0.000136,4]
[424459170,1780927838000,-2500000.0,0.00013598,2]
[424459172,1780927838000,-159.88927105,0.0001366,2]
[424459173,1780927838000,-500.0,0.00013697,2]
[424459175,1780927838000,-500.0,0.00013698,2]
[424459174,1780927838000,-500.0,0.00013698,2]
[424459179,1780927838000,-500.0,0.00013698,2]
[424459176,1780927838000,-500.0,0.00013698,2]
[424459177,1780927838000,-500.0,0.00013698,2]
[424459180,1780927838000,-500.0,0.00013698,2]
[424459178,1780927838000,-500.0,0.00013698,2]
[424459181,1780927838000,-500.0,0.00013698,2]
[424459183,1780927838000,-500.0,0.00013698,2]
[424459182,1780927838000,-500.0,0.00013698,2]
[424459095,1780927838000,-555.22857145,0.00013595,2]
[424459185,1780927838000,-500.0,0.00013698,2]
[424459187,1780927838000,-500.0,0.00013698,2]
[424459186,1780927838000,-500.0,0.00013698,2]
[424459161,1780927838000,-500.0,0.00013597,2]
[424459158,1780927838000,-500.0,0.00013597,2]
[424459184,1780927838000,-500.0,0.00013698,2]
[424459154,1780927838000,-555.22857145,0.00013595,2]
[424459159,1780927838000,-500.0,0.00013597,2]
[424459101,1780927838000,-555.22857145,0.00013595,2]
[424459105,1780927838000,-555.22857145,0.00013595,2]
[424459110,1780927838000,-555.22857145,0.00013595,2]
[424459112,1780927838000,-555.22857145,0.00013595,2]
[424459116,1780927838000,-555.22857145,0.00013595,2]
[424459118,1780927838000,-555.22857145,0.00013595,2]
[424459114,1780927838000,-555.22857145,0.00013595,2]
[424459120,1780927838000,-555.22857145,0.00013595,2]
[424459133,1780927838000,-555.22857145,0.00013595,2]
[424459122,1780927838000,-555.22857145,0.00013595,2]
[424459135,1780927838000,-555.22857145,0.00013595,2]
[424459124,1780927838000,-555.22857145,0.00013595,2]
[424459128,1780927838000,-555.22857145,0.00013595,2]
[424459103,1780927838000,-555.22857145,0.00013595,2]
[424459130,1780927838000,-555.22857145,0.00013595,2]
[424459126,1780927838000,-555.22857145,0.00013595,2]
[424459152,1780927838000,-555.22857145,0.00013595,2]
[424459150,1780927838000,-555.22857145,0.00013595,2]
[424459147,1780927838000,-555.22857145,0.00013595,2]
[424459157,1780927838000,-500.0,0.00013597,2]
[424459156,1780927838000,-500.0,0.00013596,2]
[424459145,1780927838000,-555.22857145,0.00013595,2]
[424459137,1780927838000,-555.22857145,0.00013595,2]
[424459143,1780927838000,-555.22857145,0.00013595,2]
[424459149,1780927838000,-555.22857145,0.00013595,2]
[424459139,1780927838000,-555.22857145,0.00013595,2]
[424459141,1780927838000,-555.22857145,0.00013595,2]
[424459226,1780927839000,-500.0,0.00013698,2]
[424459217,1780927839000,-500.0,0.00013698,2]
[424459216,1780927839000,-500.0,0.00013698,2]
[424459218,1780927839000,-500.0,0.00013698,2]
[424459222,1780927839000,-500.0,0.00013698,2]
[424459219,1780927839000,-500.0,0.00013698,2]
[424459221,1780927839000,-500.0,0.00013698,2]
[424459224,1780927839000,-186.90873707,0.00013698,2]
[424459223,1780927839000,-500.0,0.00013698,2]
[424459214,1780927839000,-500.0,0.00013698,2]
[424459220,1780927839000,-500.0,0.00013698,2]
[424459232,1780927839000,-500.0,0.00013699,2]
[424459228,1780927839000,-166.66,0.00013699,2]
[424459229,1780927839000,-200.0,0.00013699,2]
[424459227,1780927839000,-577.1790522,0.00013698,2]
[424459230,1780927839000,-500.0,0.00013699,2]
[424459233,1780927839000,-500.0,0.00013699,2]
[424459231,1780927839000,-500.0,0.00013699,2]
[424459239,1780927839000,-500.0,0.00013699,2]
[424459238,1780927839000,-500.0,0.00013699,2]
[424459235,1780927839000,-500.0,0.00013699,2]
[424459236,1780927839000,-500.0,0.00013699,2]
[424459234,1780927839000,-500.0,0.00013699,2]
[424459237,1780927839000,-500.0,0.00013699,2]
[424459225,1780927839000,-500.0,0.00013698,2]
[424459215,1780927839000,-457.12873569,0.00013698,2]
[424459200,1780927839000,-500.0,0.00013698,2]
[424459211,1780927839000,-500.0,0.00013698,2]
[424459240,1780927839000,-500.0,0.00013699,2]
[424459189,1780927839000,-500.0,0.00013698,2]
[424459188,1780927839000,-500.0,0.00013698,2]
[424459191,1780927839000,-500.0,0.00013698,2]
[424459190,1780927839000,-500.0,0.00013698,2]
[424459193,1780927839000,-500.0,0.00013698,2]
[424459192,1780927839000,-500.0,0.00013698,2]
[424459194,1780927839000,-500.0,0.00013698,2]
[424459195,1780927839000,-206.103436,0.00013698,2]
[424459196,1780927839000,-500.0,0.00013698,2]
[424459197,1780927839000,-500.0,0.00013698,2]
[424459213,1780927839000,-500.0,0.00013698,2]
[424459198,1780927839000,-500.0,0.00013698,2]
[424459201,1780927839000,-503.93302661,0.00013698,2]
[424459204,1780927839000,-500.0,0.00013698,2]
[424459203,1780927839000,-500.0,0.00013698,2]
[424459207,1780927839000,-514.86964047,0.00013698,2]
[424459202,1780927839000,-500.0,0.00013698,2]
[424459205,1780927839000,-500.0,0.00013698,2]
[424459206,1780927839000,-500.0,0.00013698,2]
[424459209,1780927839000,-500.0,0.00013698,2]
[424459210,1780927839000,-500.0,0.00013698,2]
[424459212,1780927839000,-500.0,0.00013698,2]
[424459208,1780927839000,-500.0,0.00013698,2]
[424459199,1780927839000,-500.0,0.00013698,2]
[424459242,1780927839000,-500.0,0.00013699,2]
[424459272,1780927839000,-500.0,0.00014301,2]
[424459243,1780927839000,-500.0,0.00013699,2]
[424459275,1780927839000,-500.0,0.00014301,2]
[424459277,1780927839000,-500.0,0.00014301,2]
[424459276,1780927839000,-500.0,0.00014301,2]
[424459279,1780927839000,-500.0,0.00014301,2]
[424459278,1780927839000,-500.0,0.00014301,2]
[424459280,1780927839000,-500.0,0.00014301,2]
[424459286,1780927839000,-500.0,0.00014301,2]
[424459284,1780927839000,-500.0,0.00014301,2]
[424459282,1780927839000,-500.0,0.00014301,2]
[424459285,1780927839000,-500.0,0.00014301,2]
[424459283,1780927839000,-500.0,0.00014301,2]
[424459274,1780927839000,-500.0,0.00014301,2]
[424459287,1780927839000,-350.0,0.00014301,2]
[424459293,1780927839000,-500.0,0.00014301,2]
[424459292,1780927839000,-500.0,0.00014301,2]
[424459290,1780927839000,-500.0,0.00014301,2]
[424459291,1780927839000,-500.0,0.00014301,2]
[424459294,1780927839000,-645.84508962,0.00014301,2]
[424459295,1780927839000,-500.0,0.00014301,2]
[424459299,1780927839000,-200.0,0.00014301,2]
[424459296,1780927839000,-520.4437061,0.00014301,2]
[424459298,1780927839000,-150.0,0.00014301,2]
[424459297,1780927839000,-150.0,0.00014301,2]
[424459241,1780927839000,-500.0,0.00013699,2]
[424459289,1780927839000,-500.0,0.00014301,2]
[424459273,1780927839000,-500.0,0.00014301,2]
[424459288,1780927839000,-150.0,0.00014301,2]
[424459270,1780927839000,-298.70676482,0.00014301,2]
[424459245,1780927839000,-1571.88,0.000137,2]
[424459271,1780927839000,-500.0,0.00014301,2]
[424459244,1780927839000,-500.0,0.00013699,2]
[424459246,1780927839000,-1400.0,0.000137,5]
[424459247,1780927839000,-1800.0,0.000138,5]
[424459248,1780927839000,-166.66,0.00013836,2]
[424459249,1780927839000,-14219.06550379,0.00013859,2]
[424459250,1780927839000,-500.0,0.00013871,2]
[424459253,1780927839000,-250.0,0.00014,2]
[424459256,1780927839000,-166.66,0.0001411,2]
[424459254,1780927839000,-159.0,0.00014,2]
[424459255,1780927839000,-8349.04,0.00014033,2]
[424459252,1780927839000,-166.66,0.00013973,2]
[424459251,1780927839000,-2300.0,0.000139,5]
[424459258,1780927839000,-159.0,0.000142,2]
[424459269,1780927839000,-500.0,0.00014301,2]
[424459268,1780927839000,-150.0,0.00014301,2]
[424459266,1780927839000,-150.0,0.00014301,2]
[424459264,1780927839000,-500.0,0.00014301,2]
[424459260,1780927839000,-162.7013178,0.00014229,2]
[424459267,1780927839000,-500.0,0.00014301,2]
[424459261,1780927839000,-166.66,0.00014247,2]
[424459263,1780927839000,-150.0,0.00014301,2]
[424459262,1780927839000,-159.0,0.000143,2]
[424459257,1780927839000,-606.83731999,0.00014145,2]
[424459259,1780927839000,-433.0,0.00014219,2]
[424459344,1780927840000,-500.0,0.00014499,2]
[424459339,1780927840000,-500.0,0.00014499,2]
[424459340,1780927840000,-500.0,0.00014499,2]
[424459338,1780927840000,-500.0,0.00014499,2]
[424459337,1780927840000,-500.0,0.00014499,2]
[424459333,1780927840000,-500.0,0.00014499,2]
[424459336,1780927840000,-500.0,0.00014499,2]
[424459334,1780927840000,-500.0,0.00014499,2]
[424459330,1780927840000,-1500000.0,0.00014404,2]
[424459331,1780927840000,-225.77132543,0.00014417,2]
[424459342,1780927840000,-500.0,0.00014499,2]
[424459335,1780927840000,-500.0,0.00014499,2]
[424459341,1780927840000,-500.0,0.00014499,2]
[424459354,1780927840000,-500.0,0.00014499,2]
[424459346,1780927840000,-500.0,0.00014499,2]
[424459345,1780927840000,-500.0,0.00014499,2]
[424459348,1780927840000,-500.0,0.00014499,2]
[424459347,1780927840000,-500.0,0.00014499,2]
[424459351,1780927840000,-500.0,0.00014499,2]
[424459350,1780927840000,-500.0,0.00014499,2]
[424459349,1780927840000,-500.0,0.00014499,2]
[424459353,1780927840000,-500.0,0.00014499,2]
[424459355,1780927840000,-500.0,0.00014499,2]
[424459352,1780927840000,-500.0,0.00014499,2]
[424459356,1780927840000,-500.0,0.00014499,2]
[424459357,1780927840000,-500.0,0.00014499,2]
[424459329,1780927840000,-303.74461009,0.00014404,10]
[424459343,1780927840000,-500.0,0.00014499,2]
[424459332,1780927840000,-37820.23717501,0.00014421,2]
[424459303,1780927840000,-897.64890297,0.00014394,2]
[424459328,1780927840000,-500.0,0.00014404,2]
[424459358,1780927840000,-500.0,0.00014499,2]
[424459300,1780927840000,-151.47284327,0.00014301,2]
[424459301,1780927840000,-14219.06550379,0.00014352,2]
[424459302,1780927840000,-166.66,0.00014384,2]
[424459304,1780927840000,-345.92516559,0.00014403,2]
[424459305,1780927840000,-500.0,0.00014403,2]
[424459306,1780927840000,-500.0,0.00014403,2]
[424459307,1780927840000,-500.0,0.00014403,2]
[424459308,1780927840000,-500.0,0.00014403,2]
[424459312,1780927840000,-372.71130708,0.00014403,2]
[424459311,1780927840000,-500.0,0.00014403,2]
[424459309,1780927840000,-500.0,0.00014403,2]
[424459310,1780927840000,-451.73014976,0.00014403,2]
[424459313,1780927840000,-529.97105744,0.00014403,2]
[424459317,1780927840000,-500.0,0.00014403,2]
[424459318,1780927840000,-500.0,0.00014403,2]
[424459314,1780927840000,-500.0,0.00014403,2]
[424459315,1780927840000,-500.0,0.00014403,2]
[424459316,1780927840000,-500.0,0.00014403,2]
[424459320,1780927840000,-500.0,0.00014403,2]
[424459319,1780927840000,-500.0,0.00014403,2]
[424459321,1780927840000,-198.71214467,0.00014403,2]
[424459322,1780927840000,-250.0,0.00014404,2]
[424459323,1780927840000,-500.0,0.00014404,2]
[424459324,1780927840000,-500.0,0.00014404,2]
[424459325,1780927840000,-500.0,0.00014404,2]
[424459327,1780927840000,-500.0,0.00014404,2]
[424459326,1780927840000,-500.0,0.00014404,2]
[424459359,1780927840000,-500.0,0.00014499,2]
[424459405,1780927840000,-500.0,0.00014499,2]
[424459360,1780927840000,-500.0,0.00014499,2]
[424459394,1780927840000,-500.0,0.00014499,2]
[424459393,1780927840000,-500.0,0.00014499,2]
[424459396,1780927840000,-500.0,0.00014499,2]
[424459398,1780927840000,-500.0,0.00014499,2]
[424459401,1780927840000,-500.0,0.00014499,2]
[424459400,1780927840000,-500.0,0.00014499,2]
[424459395,1780927840000,-500.0,0.00014499,2]
[424459399,1780927840000,-500.0,0.00014499,2]
[424459397,1780927840000,-500.0,0.00014499,2]
[424459402,1780927840000,-500.0,0.00014499,2]
[424459419,1780927840000,-192.193025,0.00014549,2]
[424459404,1780927840000,-500.0,0.00014499,2]
[424459403,1780927840000,-500.0,0.00014499,2]
[424459407,1780927840000,-500.0,0.00014499,2]
[424459406,1780927840000,-500.0,0.00014499,2]
[424459409,1780927840000,-500.0,0.00014499,2]
[424459412,1780927840000,-500.0,0.00014499,2]
[424459408,1780927840000,-500.0,0.00014499,2]
[424459410,1780927840000,-500.0,0.00014499,2]
[424459413,1780927840000,-500.0,0.00014499,2]
[424459411,1780927840000,-500.0,0.00014499,2]
[424459415,1780927840000,-267.65515596,0.000145,10]
[424459414,1780927840000,-201256.74,0.000145,2]
[424459416,1780927840000,-240.0,0.000145,2]
[424459417,1780927840000,-9999.99,0.00014504,2]
[424459418,1780927840000,-12871.71,0.00014504,2]
[424459420,1780927840000,-426.0,0.00014787,2]
[424459392,1780927840000,-500.0,0.00014499,2]
[424459391,1780927840000,-500.0,0.00014499,2]
[424459361,1780927840000,-500.0,0.00014499,2]
[424459390,1780927840000,-500.0,0.00014499,2]
[424459362,1780927840000,-500.0,0.00014499,2]
[424459364,1780927840000,-500.0,0.00014499,2]
[424459363,1780927840000,-500.0,0.00014499,2]
[424459366,1780927840000,-500.0,0.00014499,2]
[424459365,1780927840000,-500.0,0.00014499,2]
[424459368,1780927840000,-500.0,0.00014499,2]
[424459369,1780927840000,-500.0,0.00014499,2]
[424459388,1780927840000,-500.0,0.00014499,2]
[424459372,1780927840000,-500.0,0.00014499,2]
[424459367,1780927840000,-500.0,0.00014499,2]
[424459370,1780927840000,-500.0,0.00014499,2]
[424459373,1780927840000,-500.0,0.00014499,2]
[424459375,1780927840000,-500.0,0.00014499,2]
[424459371,1780927840000,-500.0,0.00014499,2]
[424459376,1780927840000,-500.0,0.00014499,2]
[424459377,1780927840000,-500.0,0.00014499,2]
[424459385,1780927840000,-500.0,0.00014499,2]
[424459386,1780927840000,-500.0,0.00014499,2]
[424459384,1780927840000,-500.0,0.00014499,2]
[424459387,1780927840000,-500.0,0.00014499,2]
[424459383,1780927840000,-500.0,0.00014499,2]
[424459389,1780927840000,-500.0,0.00014499,2]
[424459382,1780927840000,-500.0,0.00014499,2]
[424459379,1780927840000,-500.0,0.00014499,2]
[424459380,1780927840000,-500.0,0.00014499,2]
[424459378,1780927840000,-500.0,0.00014499,2]
[424459374,1780927840000,-500.0,0.00014499,2]
[424459381,1780927840000,-500.0,0.00014499,2]
[424459462,1780927841000,-500.0,0.00015288,2]
[424459461,1780927841000,-500.0,0.00015288,2]
[424459460,1780927841000,-500.0,0.00015288,2]
[424459459,1780927841000,-1600.0,0.00015268,2]
[424459458,1780927841000,-3030.11600151,0.000152,2]
[424459454,1780927841000,-2000.0,0.00015111,2]
[424459455,1780927841000,-2000.0,0.0001513,2]
[424459456,1780927841000,-500.95884429,0.00015142,2]
[424459453,1780927841000,-500.0,0.00015111,2]
[424459451,1780927841000,-520.9,0.00015,2]
[424459457,1780927841000,-1218.45265301,0.000152,2]
[424459464,1780927841000,-400.0,0.00015288,2]
[424459480,1780927841000,-14219.06550379,0.00015833,2]
[424459468,1780927841000,-2000.0,0.00015323,2]
[424459467,1780927841000,-3030.11600151,0.000153,2]
[424459466,1780927841000,-1218.45265301,0.000153,2]
[424459465,1780927841000,-150.0,0.000153,2]
[424459471,1780927841000,-1500.0,0.00015424,2]
[424459469,1780927841000,-14219.06550379,0.00015339,2]
[424459470,1780927841000,-985.81295691,0.0001534,2]
[424459472,1780927841000,-1218.45265301,0.000155,2]
[424459473,1780927841000,-3030.11600151,0.000155,2]
[424459474,1780927841000,-736.0,0.000155,2]
[424459475,1780927841000,-1218.45265301,0.000157,2]
[424459476,1780927841000,-3030.11600151,0.000157,2]
[424459452,1780927841000,-426.0,0.00015,2]
[424459463,1780927841000,-500.0,0.00015288,2]
[424459448,1780927841000,-2645.59698709,0.00014999,2]
[424459440,1780927841000,-426.0,0.00014926,2]
[424459450,1780927841000,-3030.11600151,0.00015,2]
[424459477,1780927841000,-10000.0,0.00015783,2]
[424459421,1780927841000,-161.5,0.00014788,2]
[424459422,1780927841000,-158.68,0.00014788,2]
[424459423,1780927841000,-426.0,0.00014813,2]
[424459425,1780927841000,-14219.06550379,0.00014846,2]
[424459428,1780927841000,-5800.0,0.00014866,2]
[424459427,1780927841000,-426.0,0.00014857,2]
[424459426,1780927841000,-641.50121816,0.00014856,2]
[424459429,1780927841000,-5800.0,0.00014874,2]
[424459424,1780927841000,-426.0,0.00014839,2]
[424459430,1780927841000,-426.0,0.00014875,2]
[424459432,1780927841000,-426.0,0.00014887,2]
[424459431,1780927841000,-200.0,0.0001488,2]
[424459434,1780927841000,-256.5317897,0.00014891,2]
[424459433,1780927841000,-426.0,0.00014889,2]
[424459437,1780927841000,-181.64888321,0.00014892,2]
[424459436,1780927841000,-1058.16751747,0.00014892,2]
[424459439,1780927841000,-426.0,0.000149,2]
[424459435,1780927841000,-176.36125291,0.00014892,2]
[424459438,1780927841000,-426.0,0.00014899,2]
[424459442,1780927841000,-2000.0,0.00014938,2]
[424459441,1780927841000,-426.0,0.00014934,2]
[424459443,1780927841000,-336.51623986,0.00014945,2]
[424459444,1780927841000,-1194.62,0.00014954,2]
[424459446,1780927841000,-426.0,0.00014979,2]
[424459445,1780927841000,-426.0,0.00014966,2]
[424459447,1780927841000,-426.0,0.0001499,2]
[424459449,1780927841000,-1218.45265301,0.00015,2]
[424459481,1780927841000,-10558.17709739,0.00015833,2]
[424459478,1780927841000,-3030.11600151,0.000158,2]
[424459482,1780927841000,-10000.0,0.0001595,2]
[424459516,1780927841000,-500.0,0.00016438,2]
[424459517,1780927841000,-500.0,0.00016438,2]
[424459515,1780927841000,-500.0,0.00016438,2]
[424459518,1780927841000,-500.0,0.00016438,2]
[424459519,1780927841000,-500.0,0.00016438,2]
[424459523,1780927841000,-500.0,0.00016438,2]
[424459524,1780927841000,-1194.62,0.00016449,2]
[424459521,1780927841000,-500.0,0.00016438,2]
[424459522,1780927841000,-500.0,0.00016438,2]
[424459525,1780927841000,-500.0,0.00016466,2]
[424459526,1780927841000,-5058.68845752,0.00016469,2]
[424459527,1780927841000,-5058.68845752,0.0001647,2]
[424459528,1780927841000,-150.0,0.000165,2]
[424459530,1780927841000,-150.103,0.000165,2]
[424459531,1780927841000,-150.13,0.000165,2]
[424459529,1780927841000,-250.0,0.000165,2]
[424459533,1780927841000,-3030.11600151,0.000165,2]
[424459532,1780927841000,-150.057,0.000165,2]
[424459536,1780927841000,-1283.354,0.000165,2]
[424459538,1780927841000,-5058.68845752,0.00016519,2]
[424459535,1780927841000,-3555.0,0.000165,2]
[424459540,1780927841000,-607.48922018,0.0001652,10]
[424459534,1780927841000,-150.126,0.000165,2]
[424459539,1780927841000,-253.51236249,0.0001652,10]
[424459537,1780927841000,-159.99,0.000165,3]
[424459541,1780927841000,-1613.0535,0.0001652,2]
[424459484,1780927841000,-3030.11600151,0.00016,2]
[424459513,1780927841000,-500.0,0.00016438,2]
[424459514,1780927841000,-500.0,0.00016438,2]
[424459520,1780927841000,-500.0,0.00016438,2]
[424459509,1780927841000,-500.0,0.00016438,2]
[424459512,1780927841000,-500.0,0.00016438,2]
[424459483,1780927841000,-1555.5,0.00015972,2]
[424459485,1780927841000,-300.0,0.00016,2]
[424459486,1780927841000,-1571.88,0.00016,2]
[424459487,1780927841000,-215.35374638,0.00016,2]
[424459488,1780927841000,-5058.68845752,0.00016072,2]
[424459489,1780927841000,-3030.11600151,0.000161,2]
[424459490,1780927841000,-215.35374638,0.000161,2]
[424459492,1780927841000,-5058.68845752,0.00016145,2]
[424459493,1780927841000,-5058.68845752,0.00016152,2]
[424459495,1780927841000,-3030.11600151,0.000163,2]
[424459496,1780927841000,-5058.68845752,0.00016323,2]
[424459497,1780927841000,-14219.06550379,0.00016326,2]
[424459498,1780927841000,-5058.68845752,0.00016335,2]
[424459491,1780927841000,-9999.99,0.00016116,2]
[424459508,1780927841000,-500.0,0.00016438,2]
[424459494,1780927841000,-215.35374638,0.000162,2]
[424459507,1780927841000,-500.0,0.00016438,2]
[424459511,1780927841000,-500.0,0.00016438,2]
[424459510,1780927841000,-500.0,0.00016438,2]
[424459505,1780927841000,-3551.6,0.00016438,2]
[424459502,1780927841000,-5058.68845752,0.00016394,2]
[424459506,1780927841000,-235.64,0.00016438,2]
[424459503,1780927841000,-5058.68845752,0.00016405,2]
[424459500,1780927841000,-5058.68845752,0.00016349,2]
[424459499,1780927841000,-5058.68845752,0.00016338,2]
[424459501,1780927841000,-5058.68845752,0.00016373,2]
[424459504,1780927841000,-5058.68845752,0.00016426,2]
[424459587,1780927842000,-2000.0,0.00017934,2]
[424459583,1780927842000,-500.0,0.00017808,2]
[424459586,1780927842000,-500.0,0.00017915,2]
[424459585,1780927842000,-400.0,0.000179,6]
[424459584,1780927842000,-500.0,0.00017808,2]
[424459580,1780927842000,-7977.00988577,0.00017772,2]
[424459576,1780927842000,-201256.74,0.000174,2]
[424459581,1780927842000,-944.92697157,0.00017808,2]
[424459579,1780927842000,-1734.62772924,0.00017616,2]
[424459578,1780927842000,-1191.11104074,0.00017616,2]
[424459577,1780927842000,-240.0,0.000174,2]
[424459590,1780927842000,-1296.45354135,0.00018,2]
[424459582,1780927842000,-500.0,0.00017808,2]
[424459589,1780927842000,-500.0,0.00017954,2]
[424459602,1780927842000,-150.0,0.000183,2]
[424459591,1780927842000,-2338.78979595,0.00018,2]
[424459592,1780927842000,-184.05441355,0.00018,2]
[424459593,1780927842000,-350.0,0.00018,2]
[424459595,1780927842000,-1343.35171574,0.00018127,2]
[424459594,1780927842000,-1571.88,0.00018,2]
[424459596,1780927842000,-1235.18214925,0.00018164,2]
[424459597,1780927842000,-1798.80895522,0.00018164,2]
[424459598,1780927842000,-1296.45354135,0.000182,2]
[424459601,1780927842000,-172.99202504,0.00018272,2]
[424459600,1780927842000,-184.05441355,0.000182,2]
[424459599,1780927842000,-2338.78979595,0.000182,2]
[424459604,1780927842000,-500.0,0.00018342,2]
[424459575,1780927842000,-607.48922018,0.00017342,10]
[424459588,1780927842000,-1194.62,0.00017945,2]
[424459574,1780927842000,-500.0,0.00017298,2]
[424459543,1780927842000,-1030.0,0.00016565,2]
[424459571,1780927842000,-5763.1504178,0.00017157,2]
[424459605,1780927842000,-582.66777886,0.00018342,2]
[424459542,1780927842000,-500.0,0.00016554,2]
[424459544,1780927842000,-1068.11,0.00016565,2]
[424459547,1780927842000,-500.0,0.00016642,2]
[424459545,1780927842000,-1107.63007,0.00016565,2]
[424459550,1780927842000,-168.37,0.00016712,2]
[424459546,1780927842000,-5058.68845752,0.0001663,2]
[424459549,1780927842000,-5058.68845752,0.00016701,2]
[424459551,1780927842000,-199.5,0.00016713,2]
[424459552,1780927842000,-5058.68845752,0.00016727,2]
[424459548,1780927842000,-5058.68845752,0.00016655,2]
[424459556,1780927842000,-267.65515595,0.000168,10]
[424459553,1780927842000,-5058.68845752,0.00016764,2]
[424459555,1780927842000,-200.0,0.000168,3]
[424459554,1780927842000,-5058.68845752,0.00016792,2]
[424459559,1780927842000,-5058.68845752,0.0001684,2]
[424459558,1780927842000,-5058.68845752,0.00016802,2]
[424459560,1780927842000,-5058.68845752,0.00016874,2]
[424459561,1780927842000,-5058.68845752,0.00016878,2]
[424459566,1780927842000,-1600.0,0.00016965,2]
[424459564,1780927842000,-1252.0,0.000169,2]
[424459565,1780927842000,-5058.68845752,0.0001693,2]
[424459562,1780927842000,-5058.68845752,0.0001688,2]
[424459563,1780927842000,-5058.68845752,0.00016894,2]
[424459569,1780927842000,-166.67,0.00017126,2]
[424459567,1780927842000,-1148.61238259,0.00017068,2]
[424459568,1780927842000,-1672.7364795,0.00017068,2]
[424459570,1780927842000,-554.2797674,0.00017157,2]
[424459572,1780927842000,-191285.7906825,0.00017157,2]
[424459573,1780927842000,-7977.00988577,0.00017157,2]
[424459603,1780927842000,-158.0,0.000183,4]
[424459674,1780927842000,-615.0,0.00018904,2]
[424459608,1780927842000,-7977.00988577,0.00018386,2]
[424459643,1780927842000,-500.0,0.00018904,2]
[424459647,1780927842000,-500.0,0.00018904,2]
[424459648,1780927842000,-500.0,0.00018904,2]
[424459646,1780927842000,-500.0,0.00018904,2]
[424459644,1780927842000,-500.0,0.00018904,2]
[424459650,1780927842000,-500.0,0.00018904,2]
[424459649,1780927842000,-500.0,0.00018904,2]
[424459651,1780927842000,-500.0,0.00018904,2]
[424459664,1780927842000,-500.0,0.00018904,2]
[424459665,1780927842000,-500.0,0.00018904,2]
[424459653,1780927842000,-500.0,0.00018904,2]
[424459666,1780927842000,-500.0,0.00018904,2]